[Event "*** Titled Tuesday Blitz"]
[Site "Chess.com"]
[Date "2019.02.05"]
[Round "3"]
[White "albi1999"]
[Black "GM_shahin"]
[Result "0-1"]
[WhiteElo "2490"]
[BlackElo "2735"]
[TimeControl "180+2"]
[EndTime "13:32:47 PST"]
[Termination "GM_shahin won by resignation"]

1. d4 {[%clk 0:03:01.9]} 1... Nf6 {[%clk 0:02:59.9]} 2. c4 {[%clk 0:03:00.2]}
2... e6 {[%clk 0:03:01.1]} 3. g3 {[%clk 0:02:58.6]} 3... d5 {[%clk 0:03:03]} 4.
Nf3 {[%clk 0:02:56.9]} 4... Bb4+ {[%clk 0:03:04]} 5. Bd2 {[%clk 0:02:57.3]} 5...
a5 {[%clk 0:03:05.1]} 6. Qc2 {[%clk 0:02:57.6]} 6... O-O {[%clk 0:03:05.5]} 7.
Bg2 {[%clk 0:02:58.5]} 7... Nbd7 {[%clk 0:03:06.6]} 8. O-O {[%clk 0:02:59.2]}
8... Be7 {[%clk 0:03:07.7]} 9. Rd1 {[%clk 0:02:58.4]} 9... dxc4 {[%clk 0:03:03]}
10. Qxc4 {[%clk 0:02:59.1]} 10... b6 {[%clk 0:03:04]} 11. Ng5 {[%clk 0:02:13.2]}
11... Ba6 {[%clk 0:03:02.4]} 12. Qc2 {[%clk 0:02:09.9]} 12... h6 {[%clk
0:03:03.4]} 13. Ne4 {[%clk 0:02:04.3]} 13... Bxe2 {[%clk 0:03:03.4]} 14. Re1
{[%clk 0:02:05.2]} 14... Ba6 {[%clk 0:03:03.4]} 15. Nxf6+ {[%clk 0:02:05.8]}
15... Nxf6 {[%clk 0:03:05.3]} 16. Bxa8 {[%clk 0:02:06.8]} 16... Qxa8 {[%clk
0:03:07.2]} 17. Nc3 {[%clk 0:02:07.4]} 17... Rd8 {[%clk 0:03:07.6]} 18. Bf4
{[%clk 0:02:07.7]} 18... Bb7 {[%clk 0:03:05.4]} 19. Bxc7 {[%clk 0:02:05.6]}
19... Rc8 {[%clk 0:03:06.6]} 20. Bxb6 {[%clk 0:02:03.2]} 20... Bh1 {[%clk
0:03:07.1]} 21. d5 {[%clk 0:01:48.6]} 21... Nxd5 {[%clk 0:03:04.6]} 22. Kxh1
{[%clk 0:01:45]} 22... Nxc3+ {[%clk 0:03:00.6]} 23. Kg1 {[%clk 0:01:44.9]} 23...
Nd5 {[%clk 0:03:01.2]} 24. Qb3 {[%clk 0:01:44.4]} 24... Rb8 {[%clk 0:02:59.2]}
25. Rad1 {[%clk 0:01:39.5]} 25... Rxb6 {[%clk 0:02:59.9]} 26. Qc4 {[%clk
0:01:38.3]} 26... Rc6 {[%clk 0:02:59.7]} 27. Qa4 {[%clk 0:01:18.2]} 27... Bc5
{[%clk 0:02:53.4]} 28. Rc1 {[%clk 0:01:14]} 28... Qc8 {[%clk 0:02:54.1]} 29. Kg2
{[%clk 0:01:01.8]} 29... Qb7 {[%clk 0:02:54.2]} 30. Qxa5 {[%clk 0:01:00.2]}
30... Rd6 {[%clk 0:02:49.4]} 31. Kg1 {[%clk 0:00:51.9]} 31... Bb4 {[%clk
0:02:50.4]} 0-1

[Event "*** Titled Tuesday Blitz"]
[Site "Chess.com"]
[Date "2019.02.05"]
[Round "3"]
[White "Ali_rastbod"]
[Black "The_bird_of_peace"]
[Result "1-0"]
[WhiteElo "2642"]
[BlackElo "2853"]
[TimeControl "180+2"]
[EndTime "13:32:51 PST"]
[Termination "Ali_rastbod won by resignation"]

1. c4 {[%clk 0:03:01.9]} 1... Nf6 {[%clk 0:03:00.9]} 2. Nc3 {[%clk 0:03:02.5]}
2... g6 {[%clk 0:03:02.6]} 3. g3 {[%clk 0:03:01.9]} 3... Bg7 {[%clk 0:03:03.5]}
4. Bg2 {[%clk 0:03:03]} 4... O-O {[%clk 0:03:05.4]} 5. Nf3 {[%clk 0:03:03.9]}
5... d6 {[%clk 0:03:06.7]} 6. O-O {[%clk 0:03:04.8]} 6... Nc6 {[%clk 0:03:07.7]}
7. d4 {[%clk 0:03:06]} 7... Bd7 {[%clk 0:03:08.1]} 8. b3 {[%clk 0:03:01]} 8...
e5 {[%clk 0:03:07.9]} 9. dxe5 {[%clk 0:02:30.3]} 9... dxe5 {[%clk 0:03:08.7]}
10. Bb2 {[%clk 0:02:21.1]} 10... e4 {[%clk 0:03:04.8]} 11. Ne1 {[%clk
0:02:14.4]} 11... e3 {[%clk 0:03:02.3]} 12. fxe3 {[%clk 0:02:10.1]} 12... Re8
{[%clk 0:02:57.9]} 13. Qd2 {[%clk 0:01:54.3]} 13... Ng4 {[%clk 0:02:47.8]} 14.
Nd5 {[%clk 0:01:48.1]} 14... Bxb2 {[%clk 0:01:12.8]} 15. Qxb2 {[%clk 0:01:49.7]}
15... Nce5 {[%clk 0:01:14.3]} 16. h3 {[%clk 0:01:27.1]} 16... c6 {[%clk
0:01:14.8]} 17. hxg4 {[%clk 0:01:24.4]} 17... cxd5 {[%clk 0:01:15.6]} 18. Bxd5
{[%clk 0:01:24]} 18... Bc6 {[%clk 0:01:11.7]} 1-0

[Event "*** Titled Tuesday Blitz"]
[Site "Chess.com"]
[Date "2019.02.05"]
[Round "3"]
[White "OparinGrigoriy"]
[Black "goodluck06"]
[Result "1-0"]
[WhiteElo "2915"]
[BlackElo "2459"]
[TimeControl "180+2"]
[EndTime "13:32:53 PST"]
[Termination "OparinGrigoriy won by resignation"]

1. Nf3 {[%clk 0:01:12.6]} 1... d5 {[%clk 0:02:58.1]} 2. g3 {[%clk 0:01:14.5]}
2... Nf6 {[%clk 0:02:58.7]} 3. Bg2 {[%clk 0:01:16.1]} 3... g6 {[%clk 0:02:59.9]}
4. O-O {[%clk 0:01:18]} 4... Bg7 {[%clk 0:03:01.5]} 5. c4 {[%clk 0:01:19.2]}
5... c6 {[%clk 0:02:59.5]} 6. b3 {[%clk 0:01:20.1]} 6... Ne4 {[%clk 0:02:56.6]}
7. d4 {[%clk 0:01:21.6]} 7... O-O {[%clk 0:02:56.7]} 8. Bb2 {[%clk 0:01:23.2]}
8... a5 {[%clk 0:02:56.4]} 9. Nc3 {[%clk 0:01:23.3]} 9... Bf5 {[%clk 0:02:52.2]}
10. e3 {[%clk 0:01:24.5]} 10... Na6 {[%clk 0:02:39.7]} 11. Qe2 {[%clk
0:01:24.8]} 11... Nb4 {[%clk 0:02:34.1]} 12. Rfd1 {[%clk 0:01:24.5]} 12... Nxc3
{[%clk 0:02:26.8]} 13. Bxc3 {[%clk 0:01:26.4]} 13... Be4 {[%clk 0:02:26.7]} 14.
Bh3 {[%clk 0:01:26.4]} 14... Bf5 {[%clk 0:01:55.8]} 15. Bf1 {[%clk 0:01:23.6]}
15... Qd6 {[%clk 0:01:47.1]} 16. a3 {[%clk 0:01:24]} 16... Nc2 {[%clk
0:01:46.2]} 17. Ra2 {[%clk 0:01:22.9]} 17... Nxa3 {[%clk 0:01:39.2]} 18. c5
{[%clk 0:01:23.9]} 18... Qc7 {[%clk 0:01:32.8]} 19. Rxa3 {[%clk 0:01:24.8]}
19... b5 {[%clk 0:01:32.9]} 20. cxb6 {[%clk 0:01:24.3]} 20... Qxb6 {[%clk
0:01:34.3]} 21. Rda1 {[%clk 0:01:25.1]} 21... Qb7 {[%clk 0:01:34.4]} 22. Bxa5
{[%clk 0:01:21.2]} 22... c5 {[%clk 0:01:35.5]} 23. Bc3 {[%clk 0:01:22.7]} 23...
Rxa3 {[%clk 0:01:35.7]} 24. Rxa3 {[%clk 0:01:24.6]} 24... cxd4 {[%clk
0:01:36.7]} 25. Bxd4 {[%clk 0:01:26.5]} 25... Bg4 {[%clk 0:01:36.6]} 26. Bxg7
{[%clk 0:01:27.2]} 26... Kxg7 {[%clk 0:01:37.2]} 27. Bg2 {[%clk 0:01:28.6]}
27... Qb4 {[%clk 0:01:35]} 28. Qb2+ {[%clk 0:01:29.9]} 28... f6 {[%clk
0:01:36.4]} 29. Ra4 {[%clk 0:01:31]} 29... Qc5 {[%clk 0:01:36.8]} 30. Rxg4
{[%clk 0:01:32.1]} 1-0

[Event "*** Titled Tuesday Blitz"]
[Site "Chess.com"]
[Date "2019.02.05"]
[Round "3"]
[White "in_shambles"]
[Black "NCchamp"]
[Result "0-1"]
[WhiteElo "1997"]
[BlackElo "2177"]
[TimeControl "180+2"]
[EndTime "13:33:00 PST"]
[Termination "NCchamp won by resignation"]

1. d4 {[%clk 0:03:01.9]} 1... g6 {[%clk 0:02:52.2]} 2. c4 {[%clk 0:03:02.1]}
2... Bg7 {[%clk 0:02:52.7]} 3. Nc3 {[%clk 0:03:03.4]} 3... e6 {[%clk 0:02:52.5]}
4. e4 {[%clk 0:03:02]} 4... Ne7 {[%clk 0:02:53.4]} 5. Be2 {[%clk 0:02:58.8]}
5... O-O {[%clk 0:02:49.1]} 6. Nf3 {[%clk 0:02:56]} 6... d5 {[%clk 0:02:50.1]}
7. cxd5 {[%clk 0:02:53.6]} 7... exd5 {[%clk 0:02:51.1]} 8. e5 {[%clk 0:02:54.7]}
8... c5 {[%clk 0:02:32]} 9. dxc5 {[%clk 0:02:44.2]} 9... Nd7 {[%clk 0:02:29.5]}
10. Nxd5 {[%clk 0:02:41.4]} 10... Nxe5 {[%clk 0:02:14.4]} 11. Nxe7+ {[%clk
0:02:30.6]} 11... Qxe7 {[%clk 0:02:16.3]} 12. O-O {[%clk 0:02:27.5]} 12... Qxc5
{[%clk 0:02:06.9]} 13. Be3 {[%clk 0:02:24.3]} 13... Qb4 {[%clk 0:02:01.4]} 14.
Rb1 {[%clk 0:01:44.9]} 14... Bf5 {[%clk 0:02:01.1]} 15. Rc1 {[%clk 0:01:14]}
15... Qxb2 {[%clk 0:02:00.3]} 16. Nxe5 {[%clk 0:01:09.8]} 16... Bxe5 {[%clk
0:01:58.4]} 17. a4 {[%clk 0:01:03.5]} 17... Rfd8 {[%clk 0:01:48.5]} 18. Qe1
{[%clk 0:01:02.4]} 18... Bd4 {[%clk 0:01:31.8]} 19. Bxd4 {[%clk 0:00:56.9]}
19... Rxd4 {[%clk 0:01:31.7]} 20. a5 {[%clk 0:00:51]} 20... Re8 {[%clk
0:01:31.2]} 0-1

[Event "*** Titled Tuesday Blitz"]
[Site "Chess.com"]
[Date "2019.02.05"]
[Round "3"]
[White "x-3738459472"]
[Black "Vulcanochess"]
[Result "1-0"]
[WhiteElo "2507"]
[BlackElo "2394"]
[TimeControl "180+2"]
[EndTime "13:33:08 PST"]
[Termination "x-3738459472 won by resignation"]

1. e4 {[%clk 0:03:01.9]} 1... c5 {[%clk 0:03:00.5]} 2. Nc3 {[%clk 0:03:02]} 2...
Nc6 {[%clk 0:03:00.8]} 3. Bb5 {[%clk 0:03:02.6]} 3... Nd4 {[%clk 0:03:01.4]} 4.
Bc4 {[%clk 0:03:03]} 4... g6 {[%clk 0:03:01.8]} 5. Nf3 {[%clk 0:03:04.2]} 5...
Bg7 {[%clk 0:03:02.5]} 6. O-O {[%clk 0:03:04.8]} 6... d6 {[%clk 0:03:00.6]} 7.
d3 {[%clk 0:03:02.8]} 7... Nf6 {[%clk 0:02:45.1]} 8. Nxd4 {[%clk 0:03:01.6]}
8... cxd4 {[%clk 0:02:45.7]} 9. Ne2 {[%clk 0:03:03.2]} 9... Nd7 {[%clk
0:02:44.1]} 10. f4 {[%clk 0:03:01.7]} 10... O-O {[%clk 0:02:44.2]} 11. f5 {[%clk
0:02:53.3]} 11... Ne5 {[%clk 0:02:42.9]} 12. Bb3 {[%clk 0:02:53.9]} 12... Nc6
{[%clk 0:02:43.8]} 13. fxg6 {[%clk 0:02:53.6]} 13... hxg6 {[%clk 0:02:43.9]} 14.
Nf4 {[%clk 0:02:55.1]} 14... e6 {[%clk 0:02:42.2]} 15. a4 {[%clk 0:02:45]} 15...
a5 {[%clk 0:02:30.2]} 16. Bd2 {[%clk 0:02:41.6]} 16... Qe7 {[%clk 0:02:25.7]}
17. Rf3 {[%clk 0:02:34.3]} 17... Ne5 {[%clk 0:02:24.2]} 18. Rg3 {[%clk
0:02:35.2]} 18... Bd7 {[%clk 0:02:24.5]} 19. Qe1 {[%clk 0:02:31.8]} 19... b6
{[%clk 0:02:24.8]} 20. Rh3 {[%clk 0:02:22.1]} 20... Rfc8 {[%clk 0:02:21.6]} 21.
Kh1 {[%clk 0:02:19.9]} 21... Rc5 {[%clk 0:02:22]} 22. Qg3 {[%clk 0:02:11.6]}
22... Rac8 {[%clk 0:02:20.1]} 23. Rc1 {[%clk 0:02:01.9]} 23... Qd8 {[%clk
0:01:55.7]} 24. Ne2 {[%clk 0:01:53.6]} 24... b5 {[%clk 0:01:51.9]} 25. axb5
{[%clk 0:01:54.1]} 25... Bxb5 {[%clk 0:01:50.7]} 26. Nxd4 {[%clk 0:01:47.9]}
26... a4 {[%clk 0:01:50.3]} 27. Nxe6 {[%clk 0:01:48.3]} 27... fxe6 {[%clk
0:01:36.7]} 28. Bxe6+ {[%clk 0:01:47.2]} 28... Nf7 {[%clk 0:01:37.2]} 29. Rf1
{[%clk 0:01:45]} 29... Be8 {[%clk 0:01:36.6]} 30. Qxg6 {[%clk 0:01:45]} 30...
R8c7 {[%clk 0:01:23.5]} 31. Rg3 {[%clk 0:01:44.3]} 1-0

[Event "*** Titled Tuesday Blitz"]
[Site "Chess.com"]
[Date "2019.02.05"]
[Round "3"]
[White "Genghis_K"]
[Black "DenisQ"]
[Result "1-0"]
[WhiteElo "2804"]
[BlackElo "2669"]
[TimeControl "180+2"]
[EndTime "13:33:37 PST"]
[Termination "Genghis_K won by resignation"]

1. d4 {[%clk 0:03:01.1]} 1... d5 {[%clk 0:03:00.4]} 2. Bf4 {[%clk 0:03:02.6]}
2... Nf6 {[%clk 0:03:00.7]} 3. e3 {[%clk 0:03:03.7]} 3... c5 {[%clk 0:03:00.9]}
4. Nf3 {[%clk 0:03:01.7]} 4... Nc6 {[%clk 0:03:01.2]} 5. Nbd2 {[%clk 0:03:02.8]}
5... cxd4 {[%clk 0:03:01]} 6. exd4 {[%clk 0:03:03.7]} 6... Bf5 {[%clk
0:03:01.5]} 7. c3 {[%clk 0:03:04.4]} 7... e6 {[%clk 0:02:54.8]} 8. Nh4 {[%clk
0:03:05.5]} 8... Be4 {[%clk 0:02:54.5]} 9. Nxe4 {[%clk 0:03:01]} 9... Nxe4
{[%clk 0:02:50.2]} 10. Nf3 {[%clk 0:03:01.4]} 10... Bd6 {[%clk 0:02:51]} 11.
Bxd6 {[%clk 0:03:01.8]} 11... Qxd6 {[%clk 0:02:51.6]} 12. Bd3 {[%clk 0:03:03.1]}
12... O-O {[%clk 0:02:52.2]} 13. O-O {[%clk 0:03:00.8]} 13... Rab8 {[%clk
0:02:48.2]} 14. Qe2 {[%clk 0:02:56.2]} 14... Nf6 {[%clk 0:02:43.5]} 15. Ne5
{[%clk 0:02:44.5]} 15... Qc7 {[%clk 0:02:32.1]} 16. f4 {[%clk 0:02:39.2]} 16...
a6 {[%clk 0:02:31]} 17. Rae1 {[%clk 0:02:39.8]} 17... b5 {[%clk 0:02:29.6]} 18.
a3 {[%clk 0:02:39.2]} 18... Nd7 {[%clk 0:02:23.6]} 19. g4 {[%clk 0:02:26.5]}
19... Ndxe5 {[%clk 0:02:16.5]} 20. fxe5 {[%clk 0:02:26.3]} 20... Qe7 {[%clk
0:02:11.2]} 21. Qg2 {[%clk 0:02:26.4]} 21... f6 {[%clk 0:01:50.7]} 22. exf6
{[%clk 0:02:23.3]} 22... Rxf6 {[%clk 0:01:50.4]} 23. Rxf6 {[%clk 0:02:24]} 23...
gxf6 {[%clk 0:01:25.5]} 24. Bf5 {[%clk 0:02:19]} 24... Ne5 {[%clk 0:01:00.9]}
25. dxe5 {[%clk 0:02:03]} 25... exf5 {[%clk 0:01:01.4]} 26. Qxd5+ {[%clk
0:02:03.3]} 26... Kh8 {[%clk 0:00:59.6]} 27. gxf5 {[%clk 0:02:04.7]} 27... Rg8+
{[%clk 0:00:58.6]} 28. Kf2 {[%clk 0:02:00.7]} 28... Qa7+ {[%clk 0:00:40.3]} 29.
Re3 {[%clk 0:02:01.6]} 1-0

[Event "*** Titled Tuesday Blitz"]
[Site "Chess.com"]
[Date "2019.02.05"]
[Round "3"]
[White "Synctel"]
[Black "SimonKnightRivendell"]
[Result "0-1"]
[WhiteElo "1886"]
[BlackElo "2008"]
[TimeControl "180+2"]
[EndTime "13:33:37 PST"]
[Termination "SimonKnightRivendell won by resignation"]

1. d4 {[%clk 0:03:01.9]} 1... Nf6 {[%clk 0:02:56.7]} 2. Nf3 {[%clk 0:03:02.9]}
2... e6 {[%clk 0:02:57.8]} 3. e3 {[%clk 0:03:03.2]} 3... b6 {[%clk 0:02:58.6]}
4. Bd3 {[%clk 0:03:00.3]} 4... Bb7 {[%clk 0:02:59.6]} 5. Nbd2 {[%clk 0:03:00.4]}
5... d5 {[%clk 0:02:59.7]} 6. O-O {[%clk 0:03:00.7]} 6... Be7 {[%clk 0:03:00.6]}
7. Ne5 {[%clk 0:02:59.8]} 7... Nbd7 {[%clk 0:02:58.1]} 8. f4 {[%clk 0:03:00.7]}
8... O-O {[%clk 0:02:55.3]} 9. Qf3 {[%clk 0:03:01.8]} 9... c5 {[%clk 0:02:46.7]}
10. c3 {[%clk 0:03:01.8]} 10... Rc8 {[%clk 0:02:43.4]} 11. g4 {[%clk 0:02:59.2]}
11... Ne8 {[%clk 0:02:14.4]} 12. g5 {[%clk 0:02:49.7]} 12... g6 {[%clk
0:02:14.5]} 13. h4 {[%clk 0:02:21.5]} 13... f6 {[%clk 0:02:15.2]} 14. Nxg6
{[%clk 0:02:11.8]} 14... hxg6 {[%clk 0:02:10.3]} 15. Bxg6 {[%clk 0:02:12.4]}
15... Ng7 {[%clk 0:02:07.3]} 16. Qh3 {[%clk 0:01:35]} 16... cxd4 {[%clk
0:01:47.1]} 17. exd4 {[%clk 0:01:33.6]} 17... e5 {[%clk 0:01:47.9]} 18. Nf3
{[%clk 0:01:27.7]} 18... exd4 {[%clk 0:01:32.2]} 19. Nxd4 {[%clk 0:01:28]} 19...
Nc5 {[%clk 0:01:32.8]} 20. h5 {[%clk 0:01:27.5]} 20... Qd7 {[%clk 0:01:33]} 21.
Nf5 {[%clk 0:01:23]} 21... fxg5 {[%clk 0:01:27.6]} 22. h6 {[%clk 0:01:11.3]}
22... Nxf5 {[%clk 0:01:28]} 23. fxg5 {[%clk 0:00:55.4]} 23... Nd6 {[%clk
0:01:18.4]} 24. Rxf8+ {[%clk 0:00:44.7]} 24... Rxf8 {[%clk 0:01:18.7]} 25. Qe3
{[%clk 0:00:38.1]} 25... Qg4+ {[%clk 0:01:14.3]} 0-1

[Event "*** Titled Tuesday Blitz"]
[Site "Chess.com"]
[Date "2019.02.05"]
[Round "3"]
[White "monalize"]
[Black "Jenia84"]
[Result "0-1"]
[WhiteElo "2297"]
[BlackElo "2208"]
[TimeControl "180+2"]
[EndTime "13:33:39 PST"]
[Termination "Jenia84 won by resignation"]

1. e4 {[%clk 0:03:01.9]} 1... c5 {[%clk 0:02:59.7]} 2. Nf3 {[%clk 0:03:02.1]}
2... d6 {[%clk 0:03:00.3]} 3. d4 {[%clk 0:03:02.9]} 3... cxd4 {[%clk 0:03:00.8]}
4. Qxd4 {[%clk 0:03:03.4]} 4... a6 {[%clk 0:03:00]} 5. Be2 {[%clk 0:03:03.4]}
5... Nc6 {[%clk 0:02:54]} 6. Qe3 {[%clk 0:03:04.1]} 6... Nf6 {[%clk 0:02:52.5]}
7. h3 {[%clk 0:03:03.8]} 7... b5 {[%clk 0:02:49.2]} 8. O-O {[%clk 0:03:03.7]}
8... Bb7 {[%clk 0:02:49.4]} 9. Rd1 {[%clk 0:03:03.3]} 9... Nd7 {[%clk
0:02:49.4]} 10. c4 {[%clk 0:02:52.4]} 10... b4 {[%clk 0:02:45.2]} 11. b3 {[%clk
0:02:46.8]} 11... Qb6 {[%clk 0:02:40.8]} 12. Qg5 {[%clk 0:02:41]} 12... h6
{[%clk 0:02:37.5]} 13. Qh4 {[%clk 0:02:41.2]} 13... Nde5 {[%clk 0:02:30.6]} 14.
Be3 {[%clk 0:02:39.7]} 14... Qc7 {[%clk 0:02:28.4]} 15. Nbd2 {[%clk 0:02:37.6]}
15... g6 {[%clk 0:02:25.3]} 16. Nh2 {[%clk 0:02:34.9]} 16... Bg7 {[%clk
0:02:25.3]} 17. f4 {[%clk 0:02:34.6]} 17... Nd7 {[%clk 0:02:23.1]} 18. Rac1
{[%clk 0:02:35.4]} 18... Nd4 {[%clk 0:02:22.1]} 19. Bf1 {[%clk 0:02:32.6]} 19...
Nc5 {[%clk 0:02:17.6]} 20. Ndf3 {[%clk 0:02:17.2]} 20... Nxf3+ {[%clk
0:02:16.4]} 21. gxf3 {[%clk 0:02:17.7]} 21... Bf6 {[%clk 0:02:09.8]} 22. Qf2
{[%clk 0:02:17.2]} 22... g5 {[%clk 0:02:10]} 23. Ng4 {[%clk 0:02:16]} 23... Bg7
{[%clk 0:02:02.7]} 24. fxg5 {[%clk 0:02:15.4]} 24... hxg5 {[%clk 0:02:03.4]} 25.
Bxg5 {[%clk 0:02:15.8]} 25... Ne6 {[%clk 0:02:04.1]} 26. Be3 {[%clk 0:02:16]}
26... Rg8 {[%clk 0:01:52.1]} 27. Bg2 {[%clk 0:02:12.3]} 27... Bc3 {[%clk
0:01:49.6]} 28. Kh1 {[%clk 0:02:04.7]} 28... a5 {[%clk 0:01:49.9]} 29. a4 {[%clk
0:01:58]} 29... Nc5 {[%clk 0:01:47.8]} 30. Rb1 {[%clk 0:01:58.7]} 30... O-O-O
{[%clk 0:01:42.8]} 31. e5 {[%clk 0:01:58.3]} 31... f6 {[%clk 0:01:28.9]} 32. e6
{[%clk 0:01:58.2]} 32... f5 {[%clk 0:01:29.2]} 33. Nh6 {[%clk 0:01:57.8]} 33...
Rg6 {[%clk 0:01:26.1]} 34. Nxf5 {[%clk 0:01:57.5]} 34... Rdg8 {[%clk 0:01:20.4]}
35. Rg1 {[%clk 0:01:57.2]} 35... Nd3 {[%clk 0:01:18.9]} 36. Qe2 {[%clk
0:01:52.6]} 36... Ne5 {[%clk 0:01:19.1]} 37. Rbe1 {[%clk 0:01:47.6]} 37... Rxg2
{[%clk 0:01:18.9]} 38. Rxg2 {[%clk 0:01:46.7]} 38... Rxg2 {[%clk 0:01:19.2]} 39.
Qxg2 {[%clk 0:01:43.5]} 39... Bxf3 {[%clk 0:01:19.3]} 0-1

[Event "*** Titled Tuesday Blitz"]
[Site "Chess.com"]
[Date "2019.02.05"]
[Round "3"]
[White "alishersuleymenov"]
[Black "maciek_92"]
[Result "0-1"]
[WhiteElo "2473"]
[BlackElo "2750"]
[TimeControl "180+2"]
[EndTime "13:33:41 PST"]
[Termination "maciek_92 won by resignation"]

1. d4 {[%clk 0:03:01.9]} 1... Nf6 {[%clk 0:03:00.4]} 2. c4 {[%clk 0:03:02.6]}
2... e6 {[%clk 0:03:01.8]} 3. g3 {[%clk 0:03:03.8]} 3... c5 {[%clk 0:03:02.1]}
4. Nf3 {[%clk 0:03:03.8]} 4... cxd4 {[%clk 0:03:03.4]} 5. Nxd4 {[%clk
0:03:05.7]} 5... d5 {[%clk 0:03:05.3]} 6. Bg2 {[%clk 0:03:06.9]} 6... e5 {[%clk
0:03:06.7]} 7. Nf3 {[%clk 0:03:08]} 7... d4 {[%clk 0:03:08.3]} 8. O-O {[%clk
0:03:08.8]} 8... Nc6 {[%clk 0:03:09.6]} 9. e3 {[%clk 0:03:09.4]} 9... Be7 {[%clk
0:03:11.2]} 10. exd4 {[%clk 0:03:10.5]} 10... exd4 {[%clk 0:03:13.1]} 11. b4
{[%clk 0:03:12]} 11... Bxb4 {[%clk 0:02:44.5]} 12. Nxd4 {[%clk 0:03:12.5]} 12...
O-O {[%clk 0:02:38.1]} 13. Nxc6 {[%clk 0:03:04.3]} 13... bxc6 {[%clk 0:02:39]}
14. Qxd8 {[%clk 0:02:50.1]} 14... Rxd8 {[%clk 0:02:40.9]} 15. Bxc6 {[%clk
0:02:51.4]} 15... Bh3 {[%clk 0:02:38.8]} 16. Bg2 {[%clk 0:02:47.5]} 16... Bxg2
{[%clk 0:02:29.5]} 17. Kxg2 {[%clk 0:02:49.4]} 17... Rac8 {[%clk 0:02:30.5]} 18.
Na3 {[%clk 0:02:25.5]} 18... Rd3 {[%clk 0:02:28.8]} 19. Nc2 {[%clk 0:02:20.1]}
19... Rxc4 {[%clk 0:02:26.9]} 20. Nxb4 {[%clk 0:02:14.5]} 20... Rxb4 {[%clk
0:02:28.8]} 21. Be3 {[%clk 0:02:12.3]} 21... Ra4 {[%clk 0:02:27.9]} 22. Rfd1
{[%clk 0:02:09.5]} 22... Rxd1 {[%clk 0:02:27.6]} 23. Rxd1 {[%clk 0:02:11.4]}
23... h6 {[%clk 0:02:28.8]} 24. Rd2 {[%clk 0:02:09.5]} 24... Kh7 {[%clk
0:02:28.7]} 25. h3 {[%clk 0:01:59.3]} 25... Kg6 {[%clk 0:02:28]} 26. g4 {[%clk
0:01:56.8]} 26... a6 {[%clk 0:02:24.5]} 27. Kf3 {[%clk 0:01:54.3]} 27... h5
{[%clk 0:02:22.8]} 28. Rd6 {[%clk 0:01:30.9]} 28... Kh7 {[%clk 0:02:21.7]} 29.
g5 {[%clk 0:01:27.9]} 29... Ne4 {[%clk 0:02:21.2]} 30. Rc6 {[%clk 0:01:29.4]}
30... f6 {[%clk 0:02:03.8]} 31. gxf6 {[%clk 0:01:28.4]} 31... gxf6 {[%clk
0:02:01]} 32. h4 {[%clk 0:00:57.3]} 32... Kg6 {[%clk 0:02:01.7]} 33. Rc2 {[%clk
0:00:52.3]} 33... Nd6 {[%clk 0:01:58.5]} 34. Rc6 {[%clk 0:00:50.5]} 34... Nf5
{[%clk 0:01:57.7]} 35. Bg5 {[%clk 0:00:51.6]} 35... Nd4+ {[%clk 0:01:57.6]} 0-1

[Event "*** Titled Tuesday Blitz"]
[Site "Chess.com"]
[Date "2019.02.05"]
[Round "3"]
[White "moro182"]
[Black "Jbd735"]
[Result "1-0"]
[WhiteElo "2754"]
[BlackElo "2473"]
[TimeControl "180+2"]
[EndTime "13:33:48 PST"]
[Termination "moro182 won on time"]

1. d4 {[%clk 0:03:01.9]} 1... d5 {[%clk 0:02:59.4]} 2. Bf4 {[%clk 0:03:03.2]}
2... c5 {[%clk 0:02:57.2]} 3. e3 {[%clk 0:03:04.4]} 3... Nc6 {[%clk 0:02:54.1]}
4. Nf3 {[%clk 0:03:05.3]} 4... e6 {[%clk 0:02:50.7]} 5. Nbd2 {[%clk 0:03:04.9]}
5... Nf6 {[%clk 0:02:50.1]} 6. c3 {[%clk 0:03:05.5]} 6... Bd6 {[%clk 0:02:49.2]}
7. Bg3 {[%clk 0:03:07]} 7... O-O {[%clk 0:02:42.6]} 8. Bb5 {[%clk 0:03:08.1]}
8... Bxg3 {[%clk 0:02:12.1]} 9. hxg3 {[%clk 0:03:10]} 9... Qb6 {[%clk
0:02:12.1]} 10. Bxc6 {[%clk 0:03:09.1]} 10... bxc6 {[%clk 0:02:05.9]} 11. Qc2
{[%clk 0:03:10.3]} 11... Ba6 {[%clk 0:01:48.6]} 12. g4 {[%clk 0:03:06.1]} 12...
g6 {[%clk 0:01:43.3]} 13. g5 {[%clk 0:03:04.8]} 13... Nd7 {[%clk 0:01:39.4]} 14.
e4 {[%clk 0:03:02.8]} 14... Rfc8 {[%clk 0:01:32.5]} 15. Ne5 {[%clk 0:02:41]}
15... Nf8 {[%clk 0:00:51.7]} 16. dxc5 {[%clk 0:02:38]} 16... Qxc5 {[%clk
0:00:51.5]} 17. Ndf3 {[%clk 0:02:39.9]} 17... Rab8 {[%clk 0:00:46.7]} 18. O-O-O
{[%clk 0:02:39.2]} 18... dxe4 {[%clk 0:00:41.6]} 19. Qxe4 {[%clk 0:02:36.9]}
19... Qxf2 {[%clk 0:00:32.2]} 20. Rd2 {[%clk 0:02:20.2]} 20... Qc5 {[%clk
0:00:32.4]} 21. Ng4 {[%clk 0:02:15.8]} 21... Rd8 {[%clk 0:00:08.1]} 22. Nf6+
{[%clk 0:02:05.9]} 22... Kg7 {[%clk 0:00:07.2]} 23. Qh4 {[%clk 0:01:59]} 23...
h5 {[%clk 0:00:07.8]} 24. gxh6+ {[%clk 0:01:59.8]} 24... Kh8 {[%clk 0:00:08.6]}
25. Ne4 {[%clk 0:02:00.2]} 25... Qf5 {[%clk 0:00:03.6]} 26. Rxd8 {[%clk
0:01:57.2]} 26... Rxd8 {[%clk 0:00:03.4]} 27. Qxd8 {[%clk 0:01:59.1]} 27... Qf4+
{[%clk 0:00:03.3]} 28. Nfd2 {[%clk 0:01:54.7]} 1-0